bitfinex/quotes_SOLUSD_20220311
["timestamp","ask_amount","ask_price","bid_price","bid_amount"]
[1646999914791,6.0,83.237,83.172,3.04447957]
[1646999916094,6.0,83.237,83.18,18.0225]
[1646999916497,6.0,83.237,83.163,3.04447957]
[1646999916498,128.5,83.237,83.163,3.04447957]
[1646999916798,128.5,83.237,83.164,6.0]
[1646999916999,6.009,83.236,83.141,23.8678]
[1646999917298,122.5,83.229,83.141,23.8678]
[1646999917597,6.0,83.228,83.143,49.91411825]
[1646999917997,6.0,83.228,83.144,3.04447957]
[1646999918196,18.0276,83.22,83.15,18.0295]
[1646999918397,6.0,83.219,83.15,18.0295]
[1646999919399,18.0292,83.21,83.15,18.0295]
[1646999919598,6.0,83.209,83.15,18.0295]
[1646999920000,23.4421,83.235,83.153,73.52]
[1646999920199,38.2812,83.25,83.173,73.52]
[1646999920403,23.8612,83.25,83.173,73.52]
[1646999920601,23.8612,83.25,83.174,205.06447957]
[1646999921002,14.42,83.27,83.181,122.5]
[1646999921205,1.64658988,83.279,83.175,3.04447957]
[1646999921206,6.007,83.278,83.193,196.02]
[1646999921400,6.0,83.278,83.193,196.02]
[1646999921601,6.0,83.278,83.195,196.02]
[1646999921801,1.64658988,83.279,83.197,4.89135028]
[1646999922004,1.64658988,83.279,83.198,6.0]
[1646999922202,1.64658988,83.304,83.213,196.02]
[1646999922402,70.3243,83.305,83.214,6.0]
[1646999922806,70.3243,83.305,83.215,3.04447957]
[1646999923007,6.0,83.304,83.216,6.0]
[1646999923201,6.0,83.304,83.217,196.02]
[1646999923403,6.0,83.304,83.231,196.02]
[1646999923603,18.0063,83.32,83.234,73.52]
[1646999923802,6.0,83.319,83.234,73.52]
[1646999924004,6.0,83.319,83.235,6.0]
[1646999924612,6.0,83.319,83.235,128.5]
[1646999924812,6.0,83.319,83.25,18.0063]
[1646999925011,6.0,83.328,83.251,65.3847178]
[1646999925210,6.003,83.327,83.251,65.3847178]
[1646999925411,6.0,83.326,83.251,65.3847178]
[1646999925815,6.0,83.326,83.27,18.0051]
[1646999926012,6.002,83.325,83.271,63.70344806]
[1646999926213,6.0,83.324,83.271,63.70344806]
[1646999926512,6.002,83.323,83.271,63.70344806]
[1646999926712,6.0,83.322,83.271,63.70344806]
[1646999926912,6.002,83.321,83.271,63.70344806]
[1646999927113,24.006,83.32,83.271,63.70344806]
[1646999927312,6.002,83.319,83.271,63.70344806]
[1646999927513,6.0,83.318,83.271,63.70344806]
[1646999927712,6.002,83.317,83.271,63.70344806]
[1646999928015,6.0,83.316,83.271,63.70344806]
[1646999928216,6.002,83.315,83.271,63.70344806]
[1646999928414,6.0,83.314,83.271,63.70344806]
[1646999928613,6.002,83.313,83.271,63.70344806]
[1646999928815,18.0081,83.31,83.271,63.70344806]
[1646999929037,6.0,83.309,83.271,63.70344806]
[1646999929842,122.5,83.299,83.176,18.0309]
[1646999930041,6.0,83.298,83.219,6.0]
[1646999930638,6.0,83.298,83.21,3.04447957]
[1646999930841,6.0,83.298,83.211,59.57026935]
[1646999931039,47.4663,83.297,83.211,59.57026935]
[1646999931237,128.5,83.296,83.211,59.57026935]
[1646999932038,128.5,83.296,83.212,6.0]
[1646999932241,122.5,83.289,83.22,18.0166]
[1646999932439,6.0,83.288,83.22,18.0166]
[1646999933042,14.42,83.29,83.22,18.0166]
[1646999933043,6.0,83.289,83.22,18.0166]
[1646999933240,6.0,83.289,83.241,51.8179733]
[1646999933942,6.0,83.296,83.241,51.8179733]
[1646999934340,18.0137,83.29,83.241,51.8179733]
[1646999934542,6.0,83.289,83.241,51.8179733]
[1646999935143,6.003,83.331,83.241,51.8179733]
[1646999935342,122.5,83.329,83.241,51.8179733]
[1646999935641,6.0,83.328,83.241,51.8179733]
[1646999935841,122.5,83.319,83.25,18.0103]
[1646999936044,6.0,83.318,83.25,18.0103]
[1646999936646,6.0,83.319,83.25,18.0103]
[1646999937147,128.5,83.319,83.25,18.0103]
[1646999937347,6.003,83.318,83.25,18.0103]
[1646999937647,6.0,83.317,83.25,18.0103]
[1646999937846,6.003,83.316,83.25,18.0103]
[1646999938047,6.0,83.315,83.251,6.0]
[1646999938247,6.0,83.315,83.26,18.0062]
[1646999938448,6.0,83.318,83.261,51.89911652]
[1646999938650,6.0,83.319,83.261,51.89911652]
[1646999939252,128.5,83.319,83.261,51.89911652]
[1646999939653,18.0078,83.31,83.261,51.89911652]
[1646999939855,6.0,83.309,83.261,51.89911652]
[1646999941355,18.0107,83.3,83.24,18.0112]
[1646999941555,128.5,83.299,83.21,60.0399]
[1646999941760,6.0,83.299,83.222,6.0]
[1646999941960,128.5,83.299,83.204,3.04447957]
[1646999942165,134.505,83.299,83.204,3.04447957]
[1646999942360,134.505,83.299,83.201,47.4323245]
[1646999942560,134.505,83.299,83.201,50.47680407]
[1646999942762,134.505,83.299,83.202,3.04447957]
[1646999942960,122.5,83.289,83.21,18.0172]
[1646999943163,6.0,83.288,83.21,18.0172]
[1646999943365,6.0,83.288,83.211,6.0]
[1646999943964,6.0,83.288,83.203,6.0]
[1646999944163,18.0146,83.28,83.23,18.0142]
[1646999944369,6.0,83.279,83.231,55.26640824]
[1646999944568,6.0,83.288,83.231,55.26640824]
[1646999944769,46.0533,83.298,83.231,55.26640824]
[1646999944968,6.0,83.297,83.231,55.26640824]
[1646999945167,6.0,83.297,83.232,3.04447957]
[1646999945368,6.0,83.297,83.24,18.0111]
[1646999945769,6.0,83.319,83.241,3.04447957]
[1646999945969,14.42,83.33,83.241,3.04447957]
[1646999945970,52.0533,83.327,83.242,6.0]
[1646999946371,52.0533,83.327,83.243,76.56447957]
[1646999946571,52.0533,83.327,83.245,64.40484156]
[1646999946773,18.006,83.32,83.26,18.0044]
[1646999947070,6.0,83.319,83.261,51.462022]
[1646999947471,6.003,83.318,83.261,51.462022]
[1646999947700,6.0,83.317,83.261,51.462022]
[1646999947902,18.0078,83.31,83.261,51.462022]
[1646999948201,128.5,83.309,83.261,51.462022]
[1646999948405,6.0,83.309,83.261,51.462022]
[1646999949007,18.0099,83.3,83.261,51.462022]
[1646999949606,6.0,83.309,83.261,51.462022]
[1646999950408,128.5,83.309,83.261,51.462022]
[1646999950607,18.0099,83.3,83.261,51.462022]
[1646999950806,6.0,83.299,83.26,17.9285]
[1646999951406,128.5,83.299,83.26,17.9285]
[1646999951806,6.0,83.299,83.26,17.9285]
[1646999952007,128.5,83.299,83.26,17.9285]
[1646999952409,18.0116,83.29,83.26,17.9285]
[1646999952612,6.0,83.289,83.26,17.9285]
[1646999952813,14.42,83.31,83.26,35.9373]
[1646999953012,6.0,83.309,83.26,35.9373]
[1646999953212,6.0,83.309,83.261,58.93959141]
[1646999953412,46.0533,83.327,83.261,58.93959141]
[1646999953618,6.0,83.326,83.261,58.93959141]
[1646999953814,1.64658988,83.324,83.261,58.93959141]
[1646999954017,12.002,83.323,83.261,58.93959141]
[1646999954217,6.0,83.323,83.261,58.93959141]
[1646999954715,6.0,83.326,83.261,58.93959141]
[1646999955115,18.0063,83.32,83.27,18.0065]
[1646999955315,6.0,83.319,83.27,18.0065]
[1646999955614,6.0,83.326,83.27,18.0065]
[1646999956017,1.64658988,83.337,83.271,73.52]
[1646999956220,1.64658988,83.342,83.29,17.9955]
[1646999956420,1.64658988,83.345,83.291,62.02714796]
[1646999956616,1.64658988,83.35,83.291,62.02714796]
[1646999956821,1.64658988,83.357,83.291,62.02714796]
[1646999957017,6.0,83.356,83.292,6.0]
[1646999957217,6.0,83.356,83.3,17.9952]
[1646999958017,12.0,83.359,83.3,17.9952]
[1646999958216,13.64658988,83.359,83.3,17.9952]
[1646999958717,12.0,83.359,83.3,17.9952]
[1646999959644,6.0,83.359,83.3,17.9952]
[1646999961549,6.0,83.367,83.3,21.03967957]
[1646999961747,6.0,83.372,83.3,21.03967957]
[1646999963150,6.0,83.372,83.301,196.02]
[1646999963354,6.0,83.372,83.32,17.9898]
[1646999963551,6.0,83.372,83.321,58.69283436]
[1646999964554,6.0,83.372,83.33,17.9891]
[1646999964952,6.0,83.387,83.33,17.9891]
[1646999965553,128.5,83.387,83.321,58.69283436]
[1646999966553,17.994,83.38,83.321,58.69283436]
[1646999966754,122.5,83.378,83.33,17.9923]
[1646999966956,6.0,83.377,83.33,17.9923]
[1646999967454,6.2,83.379,83.33,17.9923]
[1646999967853,122.5,83.378,83.33,17.9923]
[1646999968054,6.0,83.377,83.33,17.9923]
[1646999968656,0.2,83.379,83.33,17.9923]
[1646999969656,0.2,83.379,83.321,58.69283436]
[1646999970758,122.7,83.379,83.321,58.69283436]
[1646999970959,6.0,83.378,83.321,58.69283436]
[1646999971159,122.5,83.377,83.321,58.69283436]
[1646999971360,6.0,83.376,83.321,58.69283436]
[1646999971572,6.0,83.376,83.285,43.3801]
[1646999971761,122.5,83.374,83.286,6.0]
[1646999971961,17.9947,83.37,83.3,17.9977]
[1646999972161,6.0,83.369,83.301,6.0]
[1646999972561,128.5,83.369,83.302,63.77418235]
[1646999972768,128.5,83.369,83.303,6.0]
[1646999972962,6.0,83.369,83.303,6.0]
[1646999973161,6.0,83.374,83.303,6.0]
[1646999973962,5.998,83.373,83.303,6.0]
[1646999974164,17.9969,83.36,83.31,17.9958]
[1646999974362,6.0,83.359,83.31,17.9958]
[1646999974967,6.0,83.373,83.31,17.9958]
[1646999975165,23.5589,83.375,83.31,17.9958]
[1646999975166,6.0,83.374,83.31,17.9958]
[1646999976364,6.0,83.374,83.311,196.02]
[1646999976567,6.0,83.381,83.321,196.02]
[1646999976766,1.64658988,83.394,83.322,6.0]
[1646999976966,6.0,83.393,83.322,9.04447957]
[1646999977167,6.0,83.394,83.322,3.04447957]
[1646999977366,6.0,83.395,83.323,3.04447957]
[1646999977764,6.0,83.395,83.331,61.77206295]
[1646999977964,6.0,83.396,83.331,61.27206295]
[1646999978466,128.5,83.397,83.331,61.27206295]
[1646999978865,6.0,83.397,83.331,61.27206295]
[1646999979468,17.9902,83.39,83.331,61.27206295]
[1646999979867,122.5,83.389,83.331,61.27206295]
[1646999980069,124.14658988,83.396,83.331,61.27206295]
[1646999980273,7.64658988,83.395,83.331,61.27206295]
[1646999980469,122.5,83.379,83.331,61.27206295]
[1646999980669,6.0,83.378,83.331,61.27206295]
[1646999981272,5.998,83.377,83.275,17.9054]
[1646999981471,17.9961,83.37,83.275,17.9054]
[1646999981669,1.64658988,83.367,83.275,17.9054]
[1646999981871,122.5,83.359,83.276,28.33665552]
[1646999982069,6.0,83.358,83.276,28.33665552]
[1646999982271,122.5,83.356,83.277,62.25414181]
[1646999982469,6.0,83.355,83.278,6.0]
[1646999982673,6.0,83.355,83.278,34.33665552]
[1646999982871,18.0012,83.35,83.291,65.11725112]
[1646999983073,6.0,83.349,83.291,65.11725112]
[1646999984074,6.0,83.349,83.3,17.9996]
[1646999984873,6.0,83.356,83.3,17.9996]
[1646999985574,6.0,83.356,83.301,28.33665552]
[1646999985775,6.0,83.356,83.31,17.9953]
[1646999985976,6.0,83.356,83.311,49.20661953]
[1646999987477,6.0,83.356,83.312,6.0]
[1646999987679,17.9987,83.35,83.311,49.20661953]
[1646999987880,6.0,83.349,83.311,49.20661953]
[1646999988076,23.0721,83.357,83.311,49.20661953]
[1646999988275,6.0,83.356,83.311,49.20661953]
[1646999991479,6.0,83.363,83.32,17.9946]
[1646999992080,7.64658988,83.364,83.32,17.9946]
[1646999992279,17.9931,83.38,83.32,17.9946]
[1646999992280,6.0,83.363,83.32,17.9946]
[1646999992480,1.64658988,83.368,83.32,17.9946]
[1646999992706,6.0,83.365,83.32,17.9946]
[1646999992882,6.0,83.365,83.311,49.20661953]
[1646999993280,33.0440116,83.364,83.311,48.70661953]
[1646999993480,6.0,83.363,83.311,48.70661953]
[1646999994080,33.0440116,83.362,83.311,48.70661953]
[1646999994280,6.0,83.361,83.311,48.70661953]
[1646999995086,33.0440116,83.36,83.311,48.70661953]
[1646999995283,6.0,83.359,83.311,48.70661953]
[1646999995684,33.0440116,83.358,83.311,48.70661953]
[1646999995883,6.0,83.357,83.311,48.70661953]
[1646999996488,6.0,83.359,83.311,48.70661953]
[1646999996888,122.5,83.357,83.311,48.70661953]
[1646999997187,6.0,83.356,83.311,48.70661953]
[1646999997385,39.04524376,83.356,83.32,17.9946]
[1646999997588,33.04524376,83.356,83.32,17.9946]
[1646999997787,1.64658988,83.363,83.32,17.9946]
[1646999997990,6.0,83.362,83.32,17.9946]
[1646999998186,39.03984169,83.362,83.32,17.9946]
[1646999998588,33.03984169,83.361,83.311,48.70661953]
[1646999998787,6.0,83.36,83.311,48.70661953]
[1646999999393,33.03984169,83.359,83.31,17.9965]
[1646999999597,122.5,83.349,83.28,18.0028]
[1646999999795,146.2813,83.349,83.28,18.0028]
[1646999999994,6.0,83.348,83.281,6.0]
[1647000000222,122.5,83.339,83.281,6.0]
[1647000000422,6.0,83.338,83.281,6.0]
[1647000000626,18.0042,83.33,83.275,59.99975769]
[1647000000824,6.0,83.329,83.275,59.99975769]
[1647000001024,6.0,83.329,83.261,17.6655]
[1647000001025,14.42,83.32,83.261,17.6655]
[1647000001523,6.0,83.319,83.261,17.6655]
[1647000001725,18.008,83.31,83.261,17.6655]
[1647000001926,6.0,83.309,83.262,56.32729277]
[1647000002627,6.0,83.319,83.262,56.32729277]
[1647000002832,6.0,83.323,83.27,18.0058]
[1647000003031,6.003,83.35,83.263,28.33665552]
[1647000003032,1.64658988,83.345,83.272,122.5]
[1647000003234,1.64658988,83.356,83.274,122.5]
[1647000003528,1.64658988,83.363,83.279,73.52]
[1647000003729,1.64658988,83.371,83.283,73.52]
[1647000003966,1.64658988,83.379,83.289,73.52]
[1647000004135,7.64458988,83.378,83.294,122.5]
[1647000004333,1.64658988,83.377,83.294,196.02]
[1647000004530,33.03757973,83.377,83.296,196.02]
[1647000004730,33.03757973,83.377,83.298,196.02]
[1647000004930,33.03757973,83.38,83.301,196.02]
[1647000005132,33.03757973,83.38,83.303,196.02]
[1647000005333,33.03757973,83.383,83.307,122.5]
[1647000005534,1.64658988,83.397,83.322,73.52]
[1647000005746,6.0,83.402,83.328,73.52]
[1647000005937,1.64636517,83.41,83.351,196.02]
[1647000006134,1.64636517,83.428,83.352,5.996]
[1647000006334,1.64636517,83.437,83.352,9.04047957]
[1647000006543,1.64636517,83.439,83.354,4.32487854]
[1647000006739,5.995,83.438,83.356,196.02]
[1647000006939,5.995,83.439,83.371,196.02]
[1647000007140,1.64636517,83.452,83.373,196.02]
[1647000007545,1.64636517,83.456,83.375,73.52]
[1647000007749,1.64636517,83.456,83.376,6.0]
[1647000007941,1.64636517,83.463,83.39,17.9723]
[1647000008142,5.994,83.469,83.39,17.9723]
[1647000008346,5.993,83.47,83.391,6.0]
[1647000008840,7.63936517,83.47,83.385,6.0]
[1647000009040,6.0,83.469,83.373,18.1893]
[1647000009244,1.64636517,83.457,83.376,6.0]
[1647000009440,1.64636517,83.448,83.33,20.0]
[1647000009741,122.5,83.446,83.347,3.04447957]
[1647000009943,6.0,83.445,83.347,3.04447957]
[1647000010144,122.5,83.439,83.347,3.04447957]
[1647000010344,122.5,83.437,83.347,3.04447957]
[1647000010544,6.0,83.436,83.347,3.04447957]
[1647000010752,6.0,83.436,83.364,18.2775]
[1647000010949,6.0,83.436,83.347,3.04447957]
[1647000011146,6.0,83.439,83.35,17.9836]
[1647000011345,6.0,83.439,83.347,3.04447957]
[1647000011770,6.0,83.439,83.362,3.04447957]
[1647000012162,22.77421707,83.438,83.344,3.04447957]
[1647000012362,22.77421707,83.438,83.33,20.0]
[1647000012363,6.0,83.437,83.33,20.0]
[1647000012563,1.64636517,83.432,83.33,20.0]
[1647000012766,14.42,83.42,83.33,20.0]
[1647000012962,14.42,83.41,83.33,20.0]
[1647000013167,14.42,83.4,83.331,54.42504004]
[1647000013763,14.42,83.4,83.332,3.04447957]
[1647000014164,14.42,83.4,83.331,54.42504004]
[1647000014563,32.4103,83.4,83.331,54.42504004]
[1647000015767,5.997,83.399,83.331,54.42504004]
[1647000015969,6.0,83.398,83.331,54.42504004]
[1647000016170,22.57260963,83.396,83.331,54.42504004]
[1647000016366,6.0,83.395,83.331,54.42504004]
[1647000016768,14.42,83.39,83.331,54.42504004]
[1647000016970,6.0,83.389,83.331,54.42504004]
[1647000017169,2.50157057,83.379,83.331,54.42504004]
[1647000017368,6.0,83.378,83.331,54.42504004]
[1647000017773,6.0,83.378,83.33,20.0]
[1647000018369,6.0,83.388,83.33,20.0]
[1647000018570,5.998,83.387,83.33,20.0]
[1647000018773,23.8665,83.417,83.331,102.10793667]
[1647000018970,23.8665,83.417,83.331,119.72137567]
[1647000019174,23.8665,83.417,83.341,48.37225081]
[1647000019370,23.8665,83.417,83.342,6.0]
[1647000019570,23.8665,83.417,83.342,46.20137567]
[1647000019971,23.8665,83.417,83.343,3.04447957]
[1647000020170,23.8665,83.417,83.344,6.0]
[1647000020370,11.996,83.416,83.344,6.0]
[1647000020571,36.0362,83.416,83.345,3.04447957]
[1647000020970,122.5,83.415,83.345,3.04447957]
[1647000021171,11.996,83.414,83.35,17.9866]
[1647000021970,6.0,83.414,83.351,9.04447957]
[1647000022172,6.0,83.415,83.36,17.983]
[1647000022575,122.5,83.415,83.36,17.983]
[1647000022772,23.7743313,83.413,83.361,60.69880451]
[1647000023270,6.0,83.412,83.361,60.69880451]
[1647000023472,6.0,83.415,83.37,17.9827]
[1647000023674,24.0402,83.416,83.37,17.9827]
[1647000024273,6.0,83.415,83.37,17.9827]
[1647000024673,14.42,83.44,83.37,17.9827]
[1647000024876,11.994,83.439,83.37,17.9827]
[1647000025074,128.5,83.439,83.37,17.9827]
[1647000025276,6.0,83.439,83.37,17.9827]
[1647000025474,30.9252,83.439,83.37,17.9827]
[1647000025676,19.62925076,83.438,83.37,17.9827]
[1647000025876,6.0,83.437,83.37,17.9827]
[1647000026082,128.5,83.437,83.37,17.9827]
[1647000026675,6.0,83.437,83.37,17.9827]
[1647000027878,6.0,83.437,83.361,60.69880451]
[1647000027879,6.0,83.437,83.38,17.9796]
[1647000028077,6.0,83.437,83.381,64.36605877]
[1647000028679,6.0,83.438,83.381,64.36605877]
[1647000028879,6.0,83.438,83.39,17.9786]
[1647000029280,24.9252,83.439,83.39,17.9786]
[1647000029481,24.9252,83.439,83.391,37.11755873]
[1647000029678,14.42,83.47,83.391,37.11755873]
[1647000029878,47.775,83.469,83.392,6.0]
[1647000030278,5.993,83.478,83.4,17.9747]
[1647000030479,5.993,83.497,83.401,202.02]
[1647000030678,30.3049,83.505,83.403,73.52]
[1647000030878,14.42,83.5,83.404,11.99]
[1647000031080,5.99,83.499,83.404,6.0]
[1647000031279,5.99,83.499,83.403,24.9784]
[1647000031480,122.5,83.489,83.403,24.9784]
[1647000031781,122.5,83.479,83.403,24.9784]
[1647000031979,6.0,83.478,83.403,24.9784]
[1647000032179,122.5,83.477,83.403,24.9784]
[1647000032378,3.10511687,83.475,83.403,24.9784]
[1647000032581,6.0,83.474,83.403,18.3367]
[1647000032779,122.5,83.469,83.403,18.3367]
[1647000032981,122.5,83.467,83.403,18.3367]
[1647000033179,122.5,83.465,83.403,18.3367]
[1647000033380,5.992,83.467,83.403,18.3367]
[1647000033580,6.0,83.466,83.403,18.3367]
[1647000033784,6.0,83.466,83.41,17.9741]
[1647000033986,6.0,83.474,83.41,17.9741]
[1647000034182,6.0,83.475,83.41,17.9741]
[1647000034385,128.5,83.475,83.411,3.04447957]
[1647000034584,6.0,83.475,83.411,3.04447957]
[1647000034783,5.992,83.474,83.411,3.04447957]
[1647000034984,22.1397677,83.472,83.411,3.04447957]
[1647000035183,22.1397677,83.472,83.421,50.17731287]
[1647000035789,122.5,83.471,83.421,50.17731287]
[1647000035987,6.0,83.47,83.421,50.17731287]
[1647000036991,6.0,83.47,83.41,17.9742]
[1647000037389,128.492,83.469,83.4,17.9765]
[1647000037712,6.0,83.468,83.4,17.9765]
[1647000037888,6.0,83.468,83.4,47.09529363]
[1647000038087,6.0,83.468,83.401,55.95778417]
[1647000038290,5.992,83.469,83.401,55.95778417]
[1647000038488,6.0,83.468,83.402,3.04447957]
[1647000038888,6.0,83.468,83.41,17.9726]
[1647000039291,6.0,83.468,83.385,23.7195]
[1647000039492,122.5,83.466,83.386,6.0]
[1647000039688,6.0,83.465,83.386,6.0]
[1647000039890,122.5,83.459,83.372,3.04447957]
[1647000040089,22.5823,83.467,83.372,3.04447957]
[1647000040090,122.5,83.449,83.372,3.04447957]
[1647000040291,122.5,83.439,83.372,48.71846304]
[1647000040492,14.42,83.43,83.372,48.71846304]
[1647000040691,122.5,83.427,83.372,48.71846304]
[1647000040891,6.0,83.426,83.372,48.71846304]
[1647000041190,17.9867,83.42,83.372,48.71846304]
[1647000041392,128.5,83.419,83.372,48.71846304]
[1647000041591,6.0,83.419,83.372,48.71846304]
[1647000041790,14.42,83.42,83.372,48.71846304]
[1647000041994,6.0,83.419,83.372,48.71846304]
[1647000042190,14.42,83.43,83.372,48.71846304]
[1647000042390,6.0,83.429,83.372,48.71846304]
[1647000042592,122.5,83.427,83.372,48.71846304]
[1647000042790,6.0,83.426,83.372,48.71846304]
[1647000043392,6.0,83.427,83.38,17.9813]
[1647000043591,128.5,83.427,83.372,48.71846304]
[1647000043791,128.5,83.427,83.364,5.992]
[1647000044392,6.0,83.427,83.364,5.992]
[1647000044794,6.0,83.427,83.365,64.65777421]
[1647000045596,6.0,83.427,83.365,67.70225378]
[1647000045898,128.5,83.427,83.365,64.65777421]
[1647000046497,128.5,83.427,83.364,5.992]
[1647000046801,122.5,83.419,83.364,5.992]
[1647000046999,14.42,83.41,83.279,48.8886]
[1647000047201,122.5,83.409,83.288,18.0855]
[1647000047397,122.5,83.409,83.313,49.88921049]
[1647000047398,11.82140362,83.408,83.313,49.88921049]
[1647000047697,17.9981,83.39,83.313,49.88921049]
[1647000047904,14.42,83.38,83.313,49.88921049]
[1647000048106,122.5,83.369,83.313,49.88921049]
[1647000048304,122.5,83.359,83.313,49.88921049]
[1647000048504,122.5,83.359,83.28,59.989]
[1647000048505,6.0,83.358,83.28,59.989]
[1647000048904,122.5,83.349,83.26,60.0029]
[1647000049106,6.0,83.348,83.26,60.0029]
[1647000049306,6.002,83.347,83.26,60.0029]
[1647000049516,128.5,83.346,83.263,52.55403613]
[1647000049712,6.002,83.345,83.263,52.55403613]
[1647000049908,14.42,83.33,83.264,3.04447957]
[1647000050209,5.82140362,83.328,83.264,3.04447957]
[1647000050606,6.0,83.327,83.264,3.04447957]
[1647000051207,18.0077,83.32,83.263,49.50955656]
[1647000051407,6.0,83.319,83.263,49.50955656]
[1647000051611,6.003,83.318,83.263,49.50955656]
[1647000051812,6.0,83.317,83.263,49.50955656]
[1647000052412,19.25277658,83.315,83.263,49.50955656]
[1647000052729,6.0,83.314,83.263,49.50955656]
[1647000053127,6.003,83.313,83.263,49.50955656]
[1647000053329,6.0,83.312,83.263,49.50955656]
[1647000053527,6.003,83.311,83.263,49.50955656]
[1647000053728,6.0,83.31,83.263,49.50955656]
[1647000053928,6.003,83.309,83.263,49.50955656]
[1647000054128,6.0,83.308,83.27,18.004]
[1647000054328,6.0,83.308,83.263,49.50955656]
[1647000054529,6.0,83.319,83.263,49.50955656]
[1647000054930,6.003,83.318,83.263,49.50955656]
[1647000055132,6.0,83.317,83.263,49.50955656]
[1647000055332,6.003,83.316,83.263,49.50955656]
[1647000055530,6.0,83.315,83.263,49.50955656]
[1647000055733,6.003,83.314,83.24,3.04447957]
[1647000055931,14.42,83.31,83.241,6.0]
[1647000056136,6.003,83.31,83.241,6.0]
[1647000056331,1.64636517,83.405,83.251,73.52]
[1647000056332,14.42,83.34,83.251,73.52]
[1647000056530,14.42,83.34,83.242,0.25]
[1647000056531,14.42,83.37,83.253,73.52]
[1647000056732,6.001,83.369,83.255,73.52]
[1647000056937,6.001,83.369,83.257,79.10373094]
[1647000057132,6.001,83.369,83.259,73.52]
[1647000057341,6.001,83.369,83.261,73.52]
[1647000057532,14.42,83.37,83.271,73.52]
[1647000057731,14.42,83.37,83.262,12.25]
[1647000057732,14.42,83.37,83.272,11.998]
[1647000057932,6.0,83.369,83.272,28.1683342]
[1647000058135,6.0,83.368,83.274,56.79949162]
[1647000058335,6.0,83.367,83.274,56.79949162]
[1647000058532,122.5,83.359,83.28,18.0022]
[1647000058732,14.42,83.35,83.28,18.0022]
[1647000058932,14.42,83.34,83.28,18.0022]
[1647000059132,6.0,83.339,83.28,18.0022]
[1647000059836,12.001,83.339,83.28,18.0022]
[1647000060033,6.0,83.339,83.28,18.0022]
[1647000060233,128.5,83.339,83.28,18.0022]
[1647000060437,6.0,83.339,83.28,18.0022]
[1647000061443,6.0,83.339,83.28,36.3728]
[1647000061640,24.1608,83.4,83.28,36.3728]
[1647000061641,128.501,83.355,83.281,6.0]
[1647000061841,6.0,83.354,83.3,17.9969]
[1647000062043,6.0,83.353,83.3,17.9969]
[1647000062246,6.0,83.352,83.3,17.9969]
[1647000062449,6.0,83.351,83.301,47.55454274]
[1647000062645,6.0,83.354,83.301,47.55454274]
[1647000062845,12.0,83.354,83.301,47.55454274]
[1647000063046,6.0,83.353,83.301,47.55454274]
[1647000063245,6.0,83.352,83.301,47.55454274]
[1647000065048,6.0,83.353,83.301,47.55454274]
[1647000065345,6.0,83.354,83.301,47.55454274]
[1647000065746,6.0,83.353,83.301,47.55454274]
[1647000066346,6.0,83.354,83.301,47.55454274]
[1647000066847,6.0,83.353,83.301,47.55454274]
[1647000067650,6.0,83.354,83.301,47.55454274]